﻿Departmental family,Entity,Date Paid,Expense type,Expense Area,Supplier,Transaction Number, Total , Description , Supplier Type , Expenditure Type ,
UK Statistics Authority,Office for National Statistics,31-Jan-19,IT Management and Change,Digital Services and Technology,SCC,30001212,"97,069.50", Software Licenses and Support, Large , Programme ,
UK Statistics Authority,Office for National Statistics,01-Feb-19,Capital Major Works > 25K,People and Business Services,Paramount Office Interiors Ltd,121996,"58,248.77", Major Works Titchfield , SME , Programme ,
UK Statistics Authority,Office for National Statistics,01-Feb-19,Consultancy,Digital Services and Technology,Actian Europe Limited,122017,"72,840.00", Information Management Services , SME , Programme ,
UK Statistics Authority,Office for National Statistics,01-Feb-19,Consultancy,"Public, Population and Policy - Operations",Gowling WLG (UK) LLP,122010,"41,580.96", Census Legal Services , Large , Programme ,
UK Statistics Authority,Office for National Statistics,01-Feb-19,Contractors,Digital Services and Technology,Empiric Solutions Limited,121970,"16,368.00", Information Mangement Services, Large , Programme ,
UK Statistics Authority,Office for National Statistics,01-Feb-19,Contractors,Digital Services and Technology,Parity Resources Limited,122001,"8,640.00", Information Management Services, Large , Programme ,
UK Statistics Authority,Office for National Statistics,01-Feb-19,Contractors,Digital Services and Technology,Parity Resources Limited,122001,"5,831.28", Information Management Services, Large , Programme ,
UK Statistics Authority,Office for National Statistics,01-Feb-19,Contractors,"Methods, Data and Research",Parity Resources Limited,122001,"3,171.96", Information Management Services, Large , Programme ,
UK Statistics Authority,Office for National Statistics,01-Feb-19,Contractors,National Accounts and Economic Statistics,Parity Resources Limited,122001,"8,074.08", Information Management Services, Large , Programme ,
UK Statistics Authority,Office for National Statistics,01-Feb-19,Contractors,"Public, Population and Policy - Transformation",Parity Resources Limited,122001,"3,524.40", Information Management Services, Large , Programme ,
UK Statistics Authority,Office for National Statistics,01-Feb-19,Contractors Travel,Digital Services and Technology,Parity Resources Limited,122001,93.36, Information Management Services, Large , Programme ,
UK Statistics Authority,Office for National Statistics,01-Feb-19,Engineer Visit,Digital Services and Technology,SCC,121977,540, Oracle Cloud and Information Management Services , Large , Programme ,
UK Statistics Authority,Office for National Statistics,01-Feb-19,Hosting,Digital Services and Technology,Equiniti Limited,121984,"94,725.60", Information Management Services , Large , Programme ,
UK Statistics Authority,Office for National Statistics,01-Feb-19,ICT Outsourcing and Maintenance/Support,Digital Services and Technology,SCC,121977,"1,409.46", Oracle Cloud and Information Management Services , Large , Programme ,
UK Statistics Authority,Office for National Statistics,01-Feb-19,ICT Outsourcing and Maintenance/Support,Digital Services and Technology,SCC,121977,"7,272.79", Oracle Cloud and Information Management Services , Large , Programme ,
UK Statistics Authority,Office for National Statistics,01-Feb-19,ICT Outsourcing and Maintenance/Support,"Public, Population and Policy - Transformation",Totalmobile Ltd,122011,"239,358.00"," Licenses, Maintenance and Support for Field Management Tool", SME , Programme ,
UK Statistics Authority,Office for National Statistics,01-Feb-19,IT Contractual Services,Digital Services and Technology,E Synergy Solutions,121964,"3,600.00", Information Management Services , SME , Programme ,
UK Statistics Authority,Office for National Statistics,01-Feb-19,IT Contractual Services,Digital Services and Technology,E Synergy Solutions,121964,"9,900.00", Information Management Services , SME , Programme ,
UK Statistics Authority,Office for National Statistics,01-Feb-19,IT Contractual Services,Digital Services and Technology,E Synergy Solutions,121964,"38,988.00", Information Management Services , SME , Programme ,
UK Statistics Authority,Office for National Statistics,01-Feb-19,IT Contractual Services,Digital Services and Technology,E Synergy Solutions,121964,"41,970.00", Information Management Services , SME , Programme ,
UK Statistics Authority,Office for National Statistics,01-Feb-19,IT Contractual Services,Digital Services and Technology,Empiric Solutions Limited,121970,"28,860.00", Information Management Services, Large , Programme ,
UK Statistics Authority,Office for National Statistics,01-Feb-19,IT Contractual Services,Digital Services and Technology,Methods Business & Digital Technology Ltd,121990,"9,360.00", Information Management Services , Large , Programme ,
UK Statistics Authority,Office for National Statistics,01-Feb-19,IT Contractual Services,Digital Services and Technology,Methods Business & Digital Technology Ltd,121990,"75,150.00", Information Management Services , Large , Programme ,
UK Statistics Authority,Office for National Statistics,01-Feb-19,IT Contractual Services,Digital Services and Technology,QA Ltd,121993,"189,924.00", Information Management Services, Large , Programme ,
UK Statistics Authority,Office for National Statistics,01-Feb-19,IT Contractual Services,Policy and Communication,Methods Business & Digital Technology Ltd,121990,"11,250.00", Information Management Services , Large , Programme ,
UK Statistics Authority,Office for National Statistics,01-Feb-19,IT Purchases > 2K,Digital Services and Technology,SCC,121977,"48,551.35", Computer Hardware and Licenses, Large , Programme ,
UK Statistics Authority,Office for National Statistics,01-Feb-19,Major Works Over 25K,People and Business Services,Paramount Office Interiors Ltd,121996,"103,553.37", Major Works Titchfield , SME , Programme ,
UK Statistics Authority,Office for National Statistics,01-Feb-19,Non-IT Contractual Payments,"Public, Population and Policy - Operations",Gowling WLG (UK) LLP,122010,588.12, Census Legal Services , Large , Programme ,
UK Statistics Authority,Office for National Statistics,01-Feb-19,Non-IT Contractual Payments,"Public, Population and Policy - Operations",HH Associates Ltd,122016,"54,000.00", Census Print and Post Out Contract, SME , Programme ,
UK Statistics Authority,Office for National Statistics,01-Feb-19,Postage,"Public, Population and Policy - Operations",DHL Parcel Ltd,121987,"28,745.54", Outgoing Postage, Large , Programme ,
UK Statistics Authority,Office for National Statistics,01-Feb-19,Short-Term Contract and Agency Staff - Full Cost,"Public, Population and Policy - Operations",Parity Resources Limited,122001,"1,826.28", Information Management Services, Large , Programme ,
UK Statistics Authority,Office for National Statistics,01-Feb-19,Short-Term Contract and Agency Staff - Full Cost,"Public, Population and Policy - Transformation",Parity Resources Limited,122001,"2,419.20", Information Management Services, Large , Programme ,
UK Statistics Authority,Office for National Statistics,01-Feb-19,Statistical Data,"Public, Population and Policy - Operations",University of Salford,121985,"113,443.20", Information Management Services, Large , Programme ,
UK Statistics Authority,Office for National Statistics,01-Feb-19,Surveys,Public Policy Analysis,Kantar Public,121960,"469,420.02", Statistical Services, SME , Programme ,
UK Statistics Authority,Office for National Statistics,01-Feb-19,Travel and Subsistence,"Finance, Planning and Performance",Corporate Travel Management ,121983,"76,605.30", Travel and Accommodation Booking Service , SME , Programme ,
UK Statistics Authority,Office for National Statistics,05-Feb-19,Childcare Services,"Finance, Planning and Performance",Computershare Voucher Services,122724,"39,132.75", Childcare Vouchers , Large , Programme ,
UK Statistics Authority,Office for National Statistics,06-Feb-19,Incentive Payments,"Public, Population and Policy - Operations",Park Retail Ltd,122736,"7,176.66", Social Surveys Incentive Vouchers, Large , Programme ,
UK Statistics Authority,Office for National Statistics,06-Feb-19,Incentive Payments,"Public, Population and Policy - Operations",Park Retail Ltd,122736,"18,313.08", Social Surveys Incentive Vouchers, Large , Programme ,
UK Statistics Authority,Office for National Statistics,06-Feb-19,Incentive Payments,"Public, Population and Policy - Operations",Park Retail Ltd,122736,"6,291.69", Social Surveys Incentive Vouchers, Large , Programme ,
UK Statistics Authority,Office for National Statistics,06-Feb-19,Performance Related Pay - Voucher Payments,ONS Corporate Funds,Park Retail Ltd,122736,"5,226.25", Performance Realted Pay Vouchers, Large , Programme ,
UK Statistics Authority,Office for National Statistics,06-Feb-19,Travel and Subsistence,"Finance, Planning and Performance",Corporate Travel Management ,122745,"59,799.02", Travel and Accommodation Booking Service , SME , Programme ,
UK Statistics Authority,Office for National Statistics,07-Feb-19,ICT Outsourcing and Maintenance/Support,Digital Services and Technology,Other Media Ltd,123160,"48,785.40", Information Management Services, Large , Programme ,
UK Statistics Authority,Office for National Statistics,07-Feb-19,IT Contractual Services,Digital Services and Technology,Methods Business & Digital Technology Ltd,123151,"15,990.00", Information Managemnt Services, Large , Programme ,
UK Statistics Authority,Office for National Statistics,07-Feb-19,IT Contractual Services,Digital Services and Technology,Methods Business & Digital Technology Ltd,123151,"99,000.00", Information Management Services , Large , Programme ,
UK Statistics Authority,Office for National Statistics,07-Feb-19,IT Contractual Services,Digital Services and Technology,QA Ltd,123154,"61,170.00", Information Management Services, Large , Programme ,
UK Statistics Authority,Office for National Statistics,07-Feb-19,Postage Stamps,"Public, Population and Policy - Operations",Royal Mail Direct,123156,"37,920.00", Social Survery Reponse Incentive , Large , Programme ,
UK Statistics Authority,Office for National Statistics,11-Feb-19,Contractors Travel,Digital Services and Technology,E Synergy Solutions,123485,555.12, Information Management Services , SME , Programme ,
UK Statistics Authority,Office for National Statistics,11-Feb-19,IT Contractual Services,Digital Services and Technology,E Synergy Solutions,123485,"31,428.00", Information Management Services , SME , Programme ,
UK Statistics Authority,Office for National Statistics,11-Feb-19,Surveys,"Public, Population and Policy - Operations",NISRA,123491,"107,618.23", Statistical Services, Large , Programme ,
UK Statistics Authority,Office for National Statistics,12-Feb-19,Procurement Cards,"Finance, Planning and Performance",Royal Bank of Scotland,123692,"87,951.37", Multiple Procurement Card Purchases  , Large , Programme ,
UK Statistics Authority,Office for National Statistics,12-Feb-19,Stationery,"Finance, Planning and Performance",Royal Bank of Scotland,123692,"11,364.70", Multiple Procurement Card Stationery Purchases  , Large , Programme ,
UK Statistics Authority,Office for National Statistics,12-Feb-19,Travel and Subsistence,"Finance, Planning and Performance",Royal Bank of Scotland,123692,"7,356.82", Multiple Procurement Card Traveland Accomodation Purchases  , Large , Programme ,
UK Statistics Authority,Office for National Statistics,13-Feb-19,Facilities Management Contract Payments,"Finance, Planning and Performance",Vinci Construction UK Limited,123699,"75,973.86", Facility Management Services, Large , Programme ,
UK Statistics Authority,Office for National Statistics,13-Feb-19,Travel and Subsistence,"Finance, Planning and Performance",Corporate Travel Management ,123707,"69,715.83", Travel and Accommodation Booking Service , SME , Programme ,
UK Statistics Authority,Office for National Statistics,14-Feb-19,Contractors,Digital Services and Technology,Certes Computing Ltd,124114,"18,318.43", Information Management Services , SME , Programme ,
UK Statistics Authority,Office for National Statistics,14-Feb-19,Contractors,"Public, Population and Policy - Transformation",Certes Computing Ltd,124114,"9,223.20", Information Management Services , SME , Programme ,
UK Statistics Authority,Office for National Statistics,18-Feb-19,Electricity,People and Business Services,EDF Energy,30001228,"30,081.05", Electricity Charges Titchfield, Large , Programme ,
UK Statistics Authority,Office for National Statistics,18-Feb-19,Electricity,People and Business Services,EDF Energy,30001229,"32,190.28", Electricity Charges Newport, Large , Programme ,
UK Statistics Authority,Office for National Statistics,18-Feb-19,Training and Development,Digital Services and Technology,Armakuni Ltd,124490,"49,591.20", Information Management Services , SME , Programme ,
UK Statistics Authority,Office for National Statistics,20-Feb-19,Telecommunications,Digital Services and Technology,BT Global Services,124739,"36,565.08", BT Cloud Services, Large , Programme ,
UK Statistics Authority,Office for National Statistics,20-Feb-19,Travel and Subsistence,"Finance, Planning and Performance",Corporate Travel Management ,124740,"74,031.11", Travel and Accommodation Booking Service , SME , Programme ,
UK Statistics Authority,Office for National Statistics,21-Feb-19,Contractors,Digital Services and Technology,Parity Resources Limited,125137,"11,880.00", Information Management Services, Large , Programme ,
UK Statistics Authority,Office for National Statistics,21-Feb-19,Contractors,"Methods, Data and Research",Parity Resources Limited,125137,"7,497.36", Information Management Services, Large , Programme ,
UK Statistics Authority,Office for National Statistics,21-Feb-19,Contractors,"Methods, Data and Research",Parity Resources Limited,125137,"12,687.84", Information Management Services, Large , Programme ,
UK Statistics Authority,Office for National Statistics,21-Feb-19,IT Contractual Services,Digital Services and Technology,Methods Business & Digital Technology Ltd,125134,"21,150.00", Information Management Services, Large , Programme ,
UK Statistics Authority,Office for National Statistics,21-Feb-19,IT Contractual Services,Digital Services and Technology,Methods Business & Digital Technology Ltd,125134,"19,800.00", Information Management Services, Large , Programme ,
UK Statistics Authority,Office for National Statistics,21-Feb-19,IT Purchases > 2K,Digital Services and Technology,Stone Computers,125130,"27,108.00", Computer Hardware, Large , Programme ,
UK Statistics Authority,Office for National Statistics,21-Feb-19,Telecommunications,Digital Services and Technology,Vodafone Corporate Ltd,125115,"40,452.51", Mobile Phone cahrges, Large , Programme ,
UK Statistics Authority,Office for National Statistics,21-Feb-19,Telecommunications,Digital Services and Technology,Vodafone Corporate Ltd,125117,"58,135.82", Information Management Services , Large , Programme ,
UK Statistics Authority,Office for National Statistics,22-Feb-19,Contractors Travel,Digital Services and Technology,E Synergy Solutions,125149,30, Information Management Services , SME , Programme ,
UK Statistics Authority,Office for National Statistics,22-Feb-19,ICT Outsourcing and Maintenance/Support,Digital Services and Technology,Computacenter (UK) Limited,125160,"17,884.92", Information Management Services , Large , Programme ,
UK Statistics Authority,Office for National Statistics,22-Feb-19,ICT Outsourcing and Maintenance/Support,Digital Services and Technology,E Synergy Solutions,125149,"9,360.00", Information Management Services , SME , Programme ,
UK Statistics Authority,Office for National Statistics,22-Feb-19,ICT Outsourcing and Maintenance/Support,People and Business Services,Computacenter (UK) Limited,125160,"41,277.91", Information Management Services , Large , Programme ,
UK Statistics Authority,Office for National Statistics,22-Feb-19,IT Contractual Services,Digital Services and Technology,E Synergy Solutions,125149,"106,494.00", Information Management Services , SME , Programme ,
UK Statistics Authority,Office for National Statistics,22-Feb-19,IT Management and Change,Digital Services and Technology,Computacenter (UK) Limited,125160,279.55, Information Management Services , Large , Programme ,
UK Statistics Authority,Office for National Statistics,22-Feb-19,IT Software ,Digital Services and Technology,Cysure Limited,125163,"63,089.72", Information Management Services, SME , Programme ,
UK Statistics Authority,Office for National Statistics,25-Feb-19,Consultancy,"Finance, Planning and Performance",Accenture (UK) Limited,125421,"35,043.76", Information Management Services, SME , Programme ,
UK Statistics Authority,Office for National Statistics,25-Feb-19,IT Contractual Services,Digital Services and Technology,Cloudwick Technologies UK,125420,"31,920.00", Cloud G Nine Services , SME , Programme ,
UK Statistics Authority,Office for National Statistics,25-Feb-19,IT Contractual Services,Digital Services and Technology,QA Ltd,125416,"67,590.00", Information Management Services, Large , Programme ,
UK Statistics Authority,Office for National Statistics,26-Feb-19,Census - Field Staff Self- Help,"Public, Population and Policy - Operations",NetworthNet Ltd,126012,"44,448.64", Census Information Management Services, Large , Programme ,
UK Statistics Authority,Office for National Statistics,26-Feb-19,Census Primary School Programme Rehearsal,Policy and Communication,Four Communications Group Limited,126005,"40,736.40", Census Publicity, SME , Programme ,
UK Statistics Authority,Office for National Statistics,26-Feb-19,Consultancy,"Public, Population and Policy - Operations",The Behavioural Insights Team,126000,"34,122.00", Census Infornmation Management Services, SME , Programme ,
UK Statistics Authority,Office for National Statistics,26-Feb-19,Consultancy,"Public, Population and Policy - Transformation",Parity Resources Limited,125997,"8,971.20", Information Management Services, Large , Programme ,
UK Statistics Authority,Office for National Statistics,26-Feb-19,Contractors,Digital Services and Technology,Parity Resources Limited,125997,"20,880.00", Information Management Services, Large , Programme ,
UK Statistics Authority,Office for National Statistics,26-Feb-19,Contractors,Digital Services and Technology,Parity Resources Limited,125997,"24,991.20", Information Management Services, Large , Programme ,
UK Statistics Authority,Office for National Statistics,26-Feb-19,Contractors,Economic Statistics - Transformation,Parity Resources Limited,125997,"6,868.48", Information Management Services, Large , Programme ,
UK Statistics Authority,Office for National Statistics,26-Feb-19,Contractors,Economic Statistics - Transformation,Parity Resources Limited,125997,"4,485.60", Information Management Services, Large , Programme ,
UK Statistics Authority,Office for National Statistics,26-Feb-19,Contractors,"Methods, Data and Research",Parity Resources Limited,125997,"2,306.88", Information Management Services, Large , Programme ,
UK Statistics Authority,Office for National Statistics,26-Feb-19,Contractors,National Accounts and Economic Statistics,Mango Solutions,125976,"46,185.00", Information Mangement Services, SME , Programme ,
UK Statistics Authority,Office for National Statistics,26-Feb-19,Contractors,"Public, Population and Policy - Operations",Certeco Ltd,126004,"34,320.00", Census Infornmation Management Services, Large , Programme ,
UK Statistics Authority,Office for National Statistics,26-Feb-19,Contractors,"Public, Population and Policy - Transformation",Parity Resources Limited,125997,"13,937.40", Information Management Services, Large , Programme ,
UK Statistics Authority,Office for National Statistics,26-Feb-19,Contractors,"Public, Population and Policy - Transformation",Parity Resources Limited,125997,"14,450.04", Information Management Services, Large , Programme ,
UK Statistics Authority,Office for National Statistics,26-Feb-19,Contractors Travel,Digital Services and Technology,Parity Resources Limited,125997,53.46, Information Management Services, Large , Programme ,
UK Statistics Authority,Office for National Statistics,26-Feb-19,Furniture > 2K Per Item,People and Business Services,Gresham Office Furniture Limited,126007,"37,150.32", Smart Working Furniture  , SME , Programme ,
UK Statistics Authority,Office for National Statistics,26-Feb-19,ICT Outsourcing and Maintenance/Support,Data Science Campus,Banner Group Ltd,125977,755.14, Computer Hardware, SME , Programme ,
UK Statistics Authority,Office for National Statistics,26-Feb-19,ICT Outsourcing and Maintenance/Support,Digital Services and Technology,Amazon Web Services Inc,126008,"64,029.18", Web Services, Large , Programme ,
UK Statistics Authority,Office for National Statistics,26-Feb-19,ICT Outsourcing and Maintenance/Support,Digital Services and Technology,Mosaic Island,126003,"14,124.00", Information Management Services, Large , Programme ,
UK Statistics Authority,Office for National Statistics,26-Feb-19,ICT Outsourcing and Maintenance/Support,Digital Services and Technology,Mosaic Island,126003,"14,124.00", Information Management Services , Large , Programme ,
UK Statistics Authority,Office for National Statistics,26-Feb-19,ICT Outsourcing and Maintenance/Support,Digital Services and Technology,Parity Resources Limited,125997,166.85, Information Management Services, Large , Programme ,
UK Statistics Authority,Office for National Statistics,26-Feb-19,ICT Outsourcing and Maintenance/Support,Digital Services and Technology,SCC,125985,"68,573.96", Computer Hardware and Licenses, Large , Programme ,
UK Statistics Authority,Office for National Statistics,26-Feb-19,ICT Outsourcing and Maintenance/Support,People and Business Services,Cabinet Office,126001,"128,049.16", Civil Service Pensions Admisitration Charge, Large , Programme ,
UK Statistics Authority,Office for National Statistics,26-Feb-19,IT Contractual Services,Digital Services and Technology,Empiric Solutions Limited,125983,"31,980.00", Information Mangement Services, Large , Programme ,
UK Statistics Authority,Office for National Statistics,26-Feb-19,IT Contractual Services,Digital Services and Technology,Empiric Solutions Limited,125983,"17,160.00", Information Mangement Services, Large , Programme ,
UK Statistics Authority,Office for National Statistics,26-Feb-19,IT Contractual Services,Digital Services and Technology,Methods Business & Digital Technology Ltd,125991,"22,500.00", Information Management Services, Large , Programme ,
UK Statistics Authority,Office for National Statistics,26-Feb-19,IT Contractual Services,Digital Services and Technology,Methods Business & Digital Technology Ltd,125991,"2,700.00", Information Management Services , Large , Programme ,
UK Statistics Authority,Office for National Statistics,26-Feb-19,IT Contractual Services,Digital Services and Technology,QA Ltd,125993,"95,940.00", Information Management Services, Large , Programme ,
UK Statistics Authority,Office for National Statistics,26-Feb-19,IT Contractual Services,Policy and Communication,Swirrl IT Ltd,125980,"45,871.20", Information Management Services, SME , Programme ,
UK Statistics Authority,Office for National Statistics,26-Feb-19,IT Management and Change,Data Science Campus,Banner Group Ltd,125977,593.4, Computer Hardware, SME , Programme ,
UK Statistics Authority,Office for National Statistics,26-Feb-19,IT Management and Change,Digital Services and Technology,Insight Direct,125995,"80,517.12", Information Management Services , Large , Programme ,
UK Statistics Authority,Office for National Statistics,26-Feb-19,IT Management and Change,Digital Services and Technology,SCC,125985,"10,366.04", Oracle Cloud and Information Management Services , Large , Programme ,
UK Statistics Authority,Office for National Statistics,26-Feb-19,IT Purchases > 2K,Data Science Campus,Banner Group Ltd,125977,"48,727.80", Computer Hardware, SME , Programme ,
UK Statistics Authority,Office for National Statistics,26-Feb-19,IT Purchases > 2K,Digital Services and Technology,Banner Group Ltd,125977,"44,307.00", Information Management Services , SME , Programme ,
UK Statistics Authority,Office for National Statistics,26-Feb-19,IT Purchases > 2K,Digital Services and Technology,Insight Direct,125995,"17,076.74", Information Management Services , Large , Programme ,
UK Statistics Authority,Office for National Statistics,26-Feb-19,IT Purchases > 2K,Digital Services and Technology,SCC,125985,"121,907.54", Oracle Cloud and Information Management Services , Large , Programme ,
UK Statistics Authority,Office for National Statistics,26-Feb-19,Non-IT Contractual Payments,"Public, Population and Policy - Operations",HH Associates Ltd,126010,"30,000.00", Census Print and Post Out Contract, SME , Programme ,
UK Statistics Authority,Office for National Statistics,26-Feb-19,Non-IT Contractual Payments,"Public, Population and Policy - Operations",Leidos Innovations UK Limited,126009,"573,963.11", Census Questionaire Management Contract, Large , Programme ,
UK Statistics Authority,Office for National Statistics,26-Feb-19,Postage,Digital Services and Technology,SCC,125985,"2,382.00", Oracle Cloud and Information Management Services , Large , Programme ,
UK Statistics Authority,Office for National Statistics,26-Feb-19,Short-Term Contract and Agency Staff - Full Cost,People and Business Services,Parity Resources Limited,125997,"4,440.52", Information Management Services, Large , Programme ,
UK Statistics Authority,Office for National Statistics,26-Feb-19,Surveys,"Methods, Data and Research",University of Southampton,125986,"82,771.40", Statistical Services, SME , Programme ,
UK Statistics Authority,Office for National Statistics,26-Feb-19,Surveys,National Accounts and Economic Statistics,Kantar Public,125975,"194,328.90", Statistical Services, SME , Programme ,
UK Statistics Authority,Office for National Statistics,26-Feb-19,Surveys,"Public, Population and Policy - Operations",NatCen Social Research,125981,"201,276.90", Statistical Services, Large , Programme ,
UK Statistics Authority,Office for National Statistics,26-Feb-19,Telecommunications,Digital Services and Technology,BT Global Services,125988,"49,105.91", BT Cloud Services, Large , Programme ,
UK Statistics Authority,Office for National Statistics,28-Feb-19,Consultancy,"Public, Population and Policy - Transformation",Bloom Procurement Services Ltd,30001247,"824,552.40", Census Service Integration Contract, Large , Programme ,
UK Statistics Authority,Office for National Statistics,28-Feb-19,Facilities Management Contract Payments,"Finance, Planning and Performance",Vinci Construction UK Limited,30001248,"323,971.04", Facility Management Services, Large , Programme ,
UK Statistics Authority,Office for National Statistics,28-Feb-19,ICT Outsourcing and Maintenance/Support,Digital Services and Technology,SCC,30001242,"35,777.11", Information Management Services , Large , Programme ,
UK Statistics Authority,Office for National Statistics,28-Feb-19,ICT Outsourcing and Maintenance/Support,Digital Services and Technology,SCC,30001242,"94,816.76", Information Management Services , Large , Programme ,
UK Statistics Authority,Office for National Statistics,28-Feb-19,ICT Software,Digital Services and Technology,SCC,30001246,"924,700.78", Cloud Services, Large , Programme ,
UK Statistics Authority,Office for National Statistics,28-Feb-19,IT Management and Change,Digital Services and Technology,SCC,30001242,"568,106.40", Information Management Services , Large , Programme ,
UK Statistics Authority,Office for National Statistics,28-Feb-19,IT Purchases > 2K,Digital Services and Technology,SCC,30001242,"57,981.94", Information Management Services , Large , Programme ,
UK Statistics Authority,Office for National Statistics,28-Feb-19,IT Purchases > 2K,Digital Services and Technology,SCC,30001242,"227,585.19", Information Management Services , Large , Programme ,
